Cogmind - Beta 11 *** ADVENTURER MODE // 2022.04.06 @ 21:43:40 Player: soymachine Result: Destroyed by G-67 Veteran with Plasma Rifle Performance ------------- Evolutions (6) 3000 Regions Visited (17) 3400 Robots Destroyed (61) 305 Value Destroyed (1959) 1959 Prototype IDs (24) 480 Alien Tech Used (0) 0 Bonus (694) 694 TOTAL SCORE: 9838 Bonus ------- Follower Combat Kills 30 Entered DSFs 500 Aligned with FarCom 300 Friendly Fire -136 Cogmind --------- Core Integrity 0/1150 Matter 5/300 Energy 100/100 System Corruption 10% Temperature Cool (12) Movement Core (250) Ox4 Location -4/Upper Caves Parts ------- > --- POWER (2) -------- (None) > --- PROPULSION (6) --- Heavy Treads > --- UTILITY (9) ------ Advanced Cooling System Advanced Sensor Array > --- WEAPON (2) ------- Heavy Phase Cannon > --- INVENTORY (5) ---- Improved Sensor Array Peak State ------------ > --- POWER ------------ Antimatter Reactor > --- PROPULSION ------- Improved Gravmag System Improved Gravmag System Gravmag Array > --- UTILITY ---------- Advanced Signal Interpreter Seismic Detector Advanced Targeting Computer Advanced Melee Analysis Suite Improved Target Analyzer Improved Hacking Suite > --- WEAPON ----------- Heavy Phase Cannon Makeshift Spear > --- INVENTORY -------- Fusion Compressor Advanced Cooling System Improved Sensor Array Rocket Launcher Improved Datajack [Rating: 62] Favorites ----------- Power Antimatter Reactor Engine Improved Ion Engine Power Core Fusion Compressor Reactor Antimatter Reactor Propulsion Improved Treads Treads Improved Treads Leg Aluminum Leg Hover Unit Improved Gravmag System Utility Structural Scanner Device Structural Scanner Storage Large Storage Unit Processor Improved Signal Interpreter Hackware Improved Hacking Suite Weapon Advanced Assault Cannon Energy Cannon Heavy Phase Cannon Ballistic Gun Light Assault Rifle Ballistic Cannon Advanced Assault Cannon Launcher Rocket Launcher Special Weapon Field Lobotomy Kit Slashing Weapon Katana Piercing Weapon Makeshift Spear Build | -11 -10 -10 -10 -9 -8 -7 -7 -7 -7 -7 -6 -6 -5 -5 -5 -4 -4 ------- Run | Scr Mat Min Exi Min Mat Fac Was Fac Low Low Fac DSF Fac Was Fac Fac Upp Slots Evolved 12 | . . . . . 4 2 . . . . 2 . 2 . . 2 . Power 1 | . . . . . . . . . . . . . 1 . . . . Propulsion 4 | . . . . . 2 . . . . . . . . . . 2 . Utility 7 | . . . . . 2 2 . . . . 2 . 1 . . . . Weapon . | . . . . . . . . . . . . . . . . . . Parts Attached 68 | . 3 . . 6 12 4 3 4 2 3 . 8 3 1 13 4 2 Power 7 | . . . . 2 1 . 1 . . . . 1 . 1 1 . . Engine 3 | . . . . 2 1 . . . . . . . . . . . . Core 2 | . . . . . . . . . . . . 1 . . 1 . . Reactor 2 | . . . . . . . 1 . . . . . . 1 . . . Propulsion 14 | . . . . 2 3 . 1 . . . . 4 . . 3 . 1 Treads 7 | . . . . 2 3 . 1 . . . . . . . . . 1 Leg . | . . . . . . . . . . . . . . . . . . Wheel . | . . . . . . . . . . . . . . . . . . Hover 7 | . . . . . . . . . . . . 4 . . 3 . . Flight . | . . . . . . . . . . . . . . . . . . Utility 21 | . 2 . . . 4 2 . 1 1 . . 1 3 . 5 2 . Device 11 | . 1 . . . 1 2 . 1 . . . 1 2 . 1 2 . Storage 2 | . 1 . . . 1 . . . . . . . . . . . . Processor 6 | . . . . . 2 . . . 1 . . . . . 3 . . Hackware 2 | . . . . . . . . . . . . . 1 . 1 . . Protection . | . . . . . . . . . . . . . . . . . . Artifact . | . . . . . . . . . . . . . . . . . . Weapon 26 | . 1 . . 2 4 2 1 3 1 3 . 2 . . 4 2 1 Energy Gun . | . . . . . . . . . . . . . . . . . . Energy Cannon 4 | . . . . . 2 . . . . . . . . . 1 . 1 Ballistic Gun 4 | . . . . 2 1 1 . . . . . . . . . . . Ballistic Cannon 6 | . 1 . . . . 1 . 2 . 1 . . . . . 1 . Launcher 5 | . . . . . 1 . . 1 1 . . 1 . . 1 . . Special Weapon 2 | . . . . . . . . . . 1 . 1 . . . . . Impact Weapon . | . . . . . . . . . . . . . . . . . . Slashing Weapon 1 | . . . . . . . 1 . . . . . . . . . . Piercing Weapon 4 | . . . . . . . . . . 1 . . . . 2 1 . Special Melee Weapon . | . . . . . . . . . . . . . . . . . . Unidentified Prototypes 1 | . . . . . . . . 1 . . . . . . . . . Parts Lost 20 | . . . . 2 1 1 . 1 . 6 . . . 1 2 6 . Power 1 | . . . . 1 . . . . . . . . . . . . . Propulsion 5 | . . . . 1 . 1 . 1 . 2 . . . . . . . Utility 9 | . . . . . . . . . . 2 . . . 1 1 5 . Weapon 5 | . . . . . 1 . . . . 2 . . . . 1 1 . Highest Loss Streak 6 | . . . . 2 1 1 . 1 . 6 . . . 1 1 3 . To Critical Strikes . | . . . . . . . . . . . . . . . . . . Average Slot Usage (%) 70 | . 90 100 100 98 82 85 86 89 83 72 20 44 66 50 61 29 20 Engine 3 | . 14 14 14 13 9 7 4 . . . . . . . . . . Reactor 2 | . . . . . . . 2 7 7 6 . . . 1 3 . . Treads 10 | . . . . 7 22 22 17 20 15 11 . . . . . . 5 Leg 3 | . 28 28 28 20 . . . . . . . . . . . . . Hover 2 | . . . . . . . . . . . . 14 23 18 20 5 . Device 16 | . 5 14 14 14 17 24 30 30 24 18 . 1 9 5 4 1 10 Storage 5 | . 14 14 14 14 9 7 7 7 7 6 . . . . . . . Processor 7 | . . . . . 6 7 7 7 12 15 13 13 11 11 18 11 . Energy Cannon 1 | . . . . . 4 3 . . . . . . . . 2 1 4 Ballistic Gun 3 | . 15 14 14 17 10 3 7 . . . . . . . . . . Ballistic Cannon 5 | . 12 14 14 11 . 5 . 8 11 7 . . . . . 1 . Launcher 1 | . . . . . 2 1 . . 3 4 . 1 5 1 . . . Naked Turns 27 | . . . . . . . . . . . . . . . . 27 . Heaviest Build 54 | 10 18 18 18 26 39 44 47 54 54 52 2 18 20 20 31 23 13 Greatest Support 113 | 20 20 20 20 40 63 63 113 113 93 93 3 40 40 30 41 41 70 Greatest Overweight (x) 14 | . . . . 1 1 . . . . 14 . 3 1 1 . 2 4 Average Overweight (x) . | . . . . . . . . . . . . . . . . . 3 Largest Inventory Capacity 15 | . 10 10 10 10 15 15 15 15 15 15 5 5 5 5 5 5 5 Average Capacity 10 | . 9 10 10 10 10 15 15 15 15 14 5 5 5 5 5 5 5 Most Carried 15 | . 10 8 9 10 10 12 15 15 15 15 5 5 5 5 5 5 2 Average Carried 9 | . 8 8 8 9 9 10 14 14 14 13 5 4 4 4 4 4 1 Final Capacity 15 | 8 10 10 10 10 15 15 15 15 15 5 5 5 5 5 5 5 5 Final Carried 15 | 6 8 8 9 10 10 12 15 15 15 5 5 4 4 5 4 4 1 Class Distribution -------------------- 48% | Mutant 26% | Scavenger-Skirmisher 13% | Scavenger-Assassin 8% | Hacker-Mutant Dominant Class ---------------- Mutant | -10/Materials Mutant | -10/Mines Mutant | -10/Exiles Mutant | -9/Mines Mutant | -8/Materials Scavenger-Skirmisher | -7/Factory Scavenger-Assassin | -7/Waste Scavenger-Assassin | -7/Factory Scavenger-Skirmisher | -7/Lower Caves Scavenger-Skirmisher | -7/Lower Caves Mutant | -6/Factory Mutant | -6/DSF Hacker-Scout | -5/Factory Hacker-Mutant | -5/Waste Hacker-Mutant | -5/Factory Mutant | -4/Factory Mutant | -4/Upper Caves Resources | -11 -10 -10 -10 -9 -8 -7 -7 -7 -7 -7 -6 -6 -5 -5 -5 -4 -4 ----------- Run | Scr Mat Min Exi Min Mat Fac Was Fac Low Low Fac DSF Fac Was Fac Fac Upp Matter Collected 1905 | 200 45 43 . 225 253 52 67 39 149 201 . 99 . 235 176 22 99 Remotely . | . . . . . . . . . . . . . . . . . . Salvage Created 1709 | . 88 38 . 240 531 52 312 73 . 135 . 46 7 . 112 16 59 Parts 112 | . 13 6 . 14 32 4 . 15 . 6 . 4 4 . 10 3 1 Haulers Intercepted . | . . . . . . . . . . . . . . . . . . Recyclers Shooed 2 | . . . . . 1 . . . . . . . . . 1 . . Parts Field Recycled . | . . . . . . . . . . . . . . . . . . Retrieved Matter . | . . . . . . . . . . . . . . . . . . Parts Self-Destructed 2 | . . . . . . . . . . 2 . . . . . . . Prevented . | . . . . . . . . . . . . . . . . . . Kills | -11 -10 -10 -10 -9 -8 -7 -7 -7 -7 -7 -6 -6 -5 -5 -5 -4 -4 ------- Run | Scr Mat Min Exi Min Mat Fac Was Fac Low Low Fac DSF Fac Was Fac Fac Upp Combat Hostiles Destroyed 47 | . 5 3 . 7 14 1 . 2 . 5 . 4 4 . 2 . . Melee 1 | . . . . . . . . . . . . . . . 1 . . Guns 13 | . 2 3 . 2 5 1 . . . . . . . . . . . Cannons 20 | . 3 . . 5 6 . . 2 . 3 . . . . 1 . . AOE 13 | . . . . . 3 . . . . 2 . 4 4 . . . . Classes Destroyed 13 | . 3 . . 2 3 . . 2 . 2 . . 1 . . . . Worker 2 | . . . . . 1 . . 1 . . . . . . . . . Builder 2 | . . . . . . . . 2 . . . . . . . . . Tunneler 2 | . . . . 1 . . . . . . . . . . . 1 . Operator 2 | . . . . . 1 . . . . . . . . . 1 . . Drone 1 | . . . . . . . . . . . . . 1 . . . . Watcher 6 | . 1 . . . 1 . . 2 . . . . 1 . 1 . . Swarmer 18 | . 3 3 . . 4 . . . . . . 4 4 . . . . Grunt 16 | . 2 . . 5 9 . . . . . . . . . . . . Brawler 1 | . . . . . . . . . . 1 . . . . . . . Duelist 2 | . . . . . 1 . . . . 1 . . . . . . . Sentry 5 | . . . . 2 . 1 . 1 . 1 . . . . . . . Programmer 3 | . . . . . . . . 1 . . . . . . 2 . . Decomposer 2 | . . . . . . . . . . . . . . . . . 2 Thief 2 | . . . . . . . . . . 2 . . . . . . . Best Kill Streak 5 | . 3 3 . 3 5 1 . 3 . 3 . 4 5 . 1 1 . Combat Bots Only 4 | . 3 3 . 3 4 1 . 1 . 3 . 4 4 . 1 . . Max Kills in Single Turn 3 | . 1 1 . 2 3 1 . 1 . 1 . 2 2 . 1 1 1 Gunslinging 1 | . . . . 1 . . . . . . . . . . . . . Exploded 2 | . . . . . 2 . . . . 1 . 2 2 . . . . Melee 1 | . . . . . . . . . . . . . . . 1 . . Uniques/NPCs Destroyed . | . . . . . . . . . . . . . . . . . . Combat | -11 -10 -10 -10 -9 -8 -7 -7 -7 -7 -7 -6 -6 -5 -5 -5 -4 -4 -------- Run | Scr Mat Min Exi Min Mat Fac Was Fac Low Low Fac DSF Fac Was Fac Fac Upp Damage Taken 4462 | . 68 68 . 397 649 68 . 208 . 906 . 142 80 27 319 1382 148 Core 1744 | . 10 . . 66 98 4 . 35 . 274 . 22 . . 79 1127 29 Absorbed by Shields . | . . . . . . . . . . . . . . . . . . Core Remaining (%) 82 | 100 . . . 69 82 . . . . 55 . 97 . . 92 . . Volleys Fired 146 | . 16 7 . 22 33 2 . 13 . 14 . 5 8 3 8 3 12 Largest 2 | . 2 2 . 2 2 2 . 2 . 2 . 1 1 1 2 1 1 Hottest 123 | . 55 55 . 55 93 76 . 96 . 96 . 33 33 . 123 90 90 Shots Fired 249 | . 32 14 . 44 62 4 . 26 1 21 . 5 8 3 12 3 14 Gun 93 | . 16 7 . 26 42 2 . . . . . . . . . . . Cannon 132 | . 16 7 . 18 18 2 . 26 1 19 . . . . 8 3 14 Launcher 19 | . . . . . 2 . . . . 2 . 3 8 . 4 . . Special 5 | . . . . . . . . . . . . 2 . 3 . . . Kinetic 182 | . 32 14 . 44 42 4 . 26 1 19 . . . . . . . Thermal 43 | . . . . . 18 . . . . . . . . . 8 3 14 Explosive 19 | . . . . . 2 . . . . 2 . 3 8 . 4 . . Electromagnetic . | . . . . . . . . . . . . . . . . . . Robot Hit Streak 27 | . 13 4 . 19 27 12 . 21 . 4 . 3 2 1 7 . 2 Robot Miss Streak 3 | . 2 2 . 1 1 1 . 3 . 1 . 1 1 3 1 . . Penetration Max . | . . . . . . . . . . . . . . . . . . Secondary Targets 2 | . . . . 1 1 . . . . . . . . . . . . Max Gunslinging Chain 1 | . . . . 1 1 . . . . . . . . . . . . Shots Hit Robots 207 | . 25 8 . 40 57 3 13 18 . 15 . 4 2 1 17 2 2 Core Hits 116 | . 9 3 . 16 38 5 1 6 . 9 . 5 15 . 4 3 2 Critical Kills 1 | . . . . . . . . . . 1 . . . . . . . Critical Parts Destroyed 1 | . . . . . . . . 1 . . . . . . . . . Critical Strikes 9 | . . . . 1 . . . 3 . 2 . . . . 2 1 . Destroy 2 | . . . . . . . . 1 . 1 . . . . . . . Blast 4 | . . . . 1 . . . 2 . 1 . . . . . . . Impale 3 | . . . . . . . . . . . . . . . 2 1 . Melee Attacks 65 | . . . . . . . 13 2 . 1 . . . . 30 19 . Impact . | . . . . . . . . . . . . . . . . . . Slashing 15 | . . . . . . . 13 2 . . . . . . . . . Piercing 50 | . . . . . . . . . . 1 . . . . 30 19 . Sneak Attacks 3 | . . . . . . . . 1 . . . . . . 1 1 . Combat Hostiles . | . . . . . . . . . . . . . . . . . . Follow-up Attacks . | . . . . . . . . . . . . . . . . . . Damage Inflicted 5792 | . 337 85 . 567 1195 64 418 755 . 516 . 351 625 . 716 92 71 Guns 1050 | . 98 52 . 275 584 41 . . . . . . . . . . . Cannons 2317 | . 239 33 . 292 409 23 . 591 . 408 . . . . 251 . 71 Explosions 1521 | . . . . . 202 . . 103 . 108 . 351 625 . 132 . . Melee 884 | . . . . . . . 418 61 . . . . . . 333 72 . Ramming 20 | . . . . . . . . . . . . . . . . 20 . Kinetic 2636 | . 337 85 . 567 584 64 . 591 . 408 . . . . . . . Thermal 834 | . . . . . 409 . . 103 . . . . . . 251 . 71 Explosive 1418 | . . . . . 202 . . . . 108 . 351 625 . 132 . . Electromagnetic . | . . . . . . . . . . . . . . . . . . Impact . | . . . . . . . . . . . . . . . . . . Slashing 479 | . . . . . . . 418 61 . . . . . . . . . Piercing 405 | . . . . . . . . . . . . . . . 333 72 . Highest Corruption 19 | . . . . . . . . 1 1 1 . . . 12 19 10 10 Average Corruption 6 | . . . . . . . . 1 1 1 . . . 9 16 6 10 Corruption Purged . | . . . . . . . . . . . . . . . . . . Corruption Blocked . | . . . . . . . . . . . . . . . . . . Effects 110 | . . . . . . . . . 9 3 . . . 5 27 11 55 Message Errors 27 | . . . . . . . . . 3 . . . . 2 7 5 10 Matter Fused 31 | . . . . . . . . . 2 1 . . . 2 9 1 16 Heat Flow Errors 15 | . . . . . . . . . . . . . . . 4 1 10 Energy Discharges 10 | . . . . . . . . . 3 . . . . 1 . 1 5 Parts Rejected 1 | . . . . . . . . . . . . . . . 1 . . Data Loss (minor) 7 | . . . . . . . . . . 1 . . . . . 2 4 Data Loss (major) 7 | . . . . . . . . . . . . . . . 1 1 5 Misfires 5 | . . . . . . . . . 1 . . . . . 1 . 3 Alerts 2 | . . . . . . . . . . . . . . . 1 . 1 Misdirections 2 | . . . . . . . . . . . . . . . 2 . . Weapon Failures 3 | . . . . . . . . . . 1 . . . . 1 . 1 Overload Shots . | . . . . . . . . . . . . . . . . . . Overflow Damage 186 | . 4 . . . 7 . . 122 . . . . 21 . 32 . . Projectiles 58 | . 4 . . . 7 . . 42 . . . . . . 5 . . Explosions 101 | . . . . . . . . 80 . . . . 21 . . . . Melee 27 | . . . . . . . . . . . . . . . 27 . . Knockbacks 11 | . 4 . . 1 . . . 5 . 1 . . . . . . . Impact . | . . . . . . . . . . . . . . . . . . Kinetic 11 | . 4 . . 1 . . . 5 . 1 . . . . . . . Secondary . | . . . . . . . . . . . . . . . . . . Self-Inflicted Damage 141 | . . . . . . . . 55 . 69 . 8 . . . 9 . Shots 4 | . . . . . . . . 1 . 2 . 1 . . . . . Rammed 3 | . . . . . . . . . . . . . . . . 3 . Targets Rammed 3 | . . . . . . . . . . . . . . . . 3 . Kicked . | . . . . . . . . . . . . . . . . . . Crushed . | . . . . . . . . . . . . . . . . . . Highest Temperature 328 | . 28 28 . 67 10 . . 3 3 137 . . . . 328 212 227 Average Temperature 57 | . 12 12 . 31 5 . . 3 2 42 . . . . 144 62 48 Received Heat Transfer 1260 | . 6 . . 276 432 30 . 66 . 297 . . . . . 114 39 Siege Activations . | . . . . . . . . . . . . . . . . . . Robots Corrupted . | . . . . . . . . . . . . . . . . . . Combat Hostiles . | . . . . . . . . . . . . . . . . . . Parts Fried . | . . . . . . . . . . . . . . . . . . Impact Corruptions . | . . . . . . . . . . . . . . . . . . Robots Melted . | . . . . . . . . . . . . . . . . . . Combat Hostiles . | . . . . . . . . . . . . . . . . . . Parts Melted 1 | . . . . . . . . . . . . . . . 1 . . Heat Transferred 1012 | . . . . . 666 . . 50 . . . . . . 222 . 74 Parts Sabotaged . | . . . . . . . . . . . . . . . . . . Parts Stolen . | . . . . . . . . . . . . . . . . . . Parts Stripped . | . . . . . . . . . . . . . . . . . . Power Chain Reactions . | . . . . . . . . . . . . . . . . . . Missiles Intercepted . | . . . . . . . . . . . . . . . . . . Alert | -11 -10 -10 -10 -9 -8 -7 -7 -7 -7 -7 -6 -6 -5 -5 -5 -4 -4 ------- Run | Scr Mat Min Exi Min Mat Fac Was Fac Low Low Fac DSF Fac Was Fac Fac Upp Peak Influence 334 | . 175 127 . 145 289 44 12 106 . . 18 143 218 75 261 334 . Initial 65 | . . 57 . . 1 34 12 . . . 18 13 65 60 14 37 . Average 62 | . 81 111 . 74 82 24 7 25 . . 18 36 161 55 85 130 . Maximum Alert Level 1 | . . . . . 1 . . . . . . . 1 . 1 1 . Low Security (%) 92 | . 100 100 . 100 98 100 100 100 . . 100 100 39 100 81 63 . Level 1 7 | . . . . . 1 . . . . . . . 60 . 18 36 . Level 2 . | . . . . . . . . . . . . . . . . . . Level 3 . | . . . . . . . . . . . . . . . . . . Level 4 . | . . . . . . . . . . . . . . . . . . Level 5 . | . . . . . . . . . . . . . . . . . . High Security . | . . . . . . . . . . . . . . . . . . Max Security . | . . . . . . . . . . . . . . . . . . Squads Dispatched 18 | . 1 . . . 1 . . 3 . 1 . . 3 . 4 5 . Investigation 4 | . 1 . . . . . . 1 . . . . . . 1 1 . Extermination 2 | . . . . . . . . 1 . . . . . . 1 . . Reinforcement 10 | . . . . . 1 . . 1 . . . . 3 . 2 3 . Assault 1 | . . . . . . . . . . 1 . . . . . . . Garrison 1 | . . . . . . . . . . . . . . . . 1 . Intercept . | . . . . . . . . . . . . . . . . . . Searches Triggered . | . . . . . . . . . . . . . . . . . . Construction Impeded 1 | . . . . . . . . . . . . . 1 . . . . Haulers Reinforced 1 | . . . . . . . . . . . . . . . . 1 . Active Scanning Responses . | . . . . . . . . . . . . . . . . . . Cargo Convoy Interrupts . | . . . . . . . . . . . . . . . . . . Stealth | -11 -10 -10 -10 -9 -8 -7 -7 -7 -7 -7 -6 -6 -5 -5 -5 -4 -4 --------- Run | Scr Mat Min Exi Min Mat Fac Was Fac Low Low Fac DSF Fac Was Fac Fac Upp Distress Signals 7 | . 1 . . . 1 . . . . . . . 1 . . 4 . Communications Jammed . | . . . . . . . . . . . . . . . . . . Distress Signals . | . . . . . . . . . . . . . . . . . . Times Spotted 116 | . 8 3 . 6 17 2 1 6 . 16 . 6 4 8 7 29 3 Peak Tracking Total 17 | . 3 3 . 2 6 2 1 2 . 12 . 4 5 4 2 17 3 Tactical Retreats 14 | . 2 . . . 1 . . . . 1 . . . 1 1 8 . Traps | -11 -10 -10 -10 -9 -8 -7 -7 -7 -7 -7 -6 -6 -5 -5 -5 -4 -4 ------- Run | Scr Mat Min Exi Min Mat Fac Was Fac Low Low Fac DSF Fac Was Fac Fac Upp Traps Triggered 5 | . 1 . . . . 1 . . . . . . 1 . . 2 . Indirectly . | . . . . . . . . . . . . . . . . . . Trap Hack Attempts . | . . . . . . . . . . . . . . . . . . Triggered . | . . . . . . . . . . . . . . . . . . Disarmed . | . . . . . . . . . . . . . . . . . . Reprogrammed . | . . . . . . . . . . . . . . . . . . Reused . | . . . . . . . . . . . . . . . . . . Traps Extracted . | . . . . . . . . . . . . . . . . . . Installed . | . . . . . . . . . . . . . . . . . . Triggered . | . . . . . . . . . . . . . . . . . . Machines | -11 -10 -10 -10 -9 -8 -7 -7 -7 -7 -7 -6 -6 -5 -5 -5 -4 -4 ---------- Run | Scr Mat Min Exi Min Mat Fac Was Fac Low Low Fac DSF Fac Was Fac Fac Upp Machines Disabled 13 | . . . . . . 1 . 4 . 1 . 2 3 . 1 1 . Max in Single Turn 3 | . . . . . . 1 . 3 . 1 . 1 2 . 1 1 . Machines Sabotaged . | . . . . . . . . . . . . . . . . . . Garrisons Compromised . | . . . . . . . . . . . . . . . . . . Overloaded Fab Kills . | . . . . . . . . . . . . . . . . . . Hacking | -11 -10 -10 -10 -9 -8 -7 -7 -7 -7 -7 -6 -6 -5 -5 -5 -4 -4 --------- Run | Scr Mat Min Exi Min Mat Fac Was Fac Low Low Fac DSF Fac Was Fac Fac Upp Machines Accessed 12 | . . . 1 1 . 2 . 2 1 . 1 . . . 3 1 . Terminals 2 | . . . . 1 . . . . . . 1 . . . . . . Fabricators 3 | . . . . . . 1 . . . . . . . . 2 . . Repair Stations 1 | . . . . . . . . 1 . . . . . . . . . Recycling Units . | . . . . . . . . . . . . . . . . . . Scanalyzers 1 | . . . . . . . . 1 . . . . . . . . . Garrison Access 3 | . . . . . . 1 . . . . . . . . 1 1 . Total Hacks 19 | . . . 1 1 . 5 . 5 1 . 1 . . . 4 1 . Successful 11 | . . . 1 1 . 1 . 2 1 . 1 . . . 3 1 . Failed 8 | . . . . . . 4 . 3 . . . . . . 1 . . Catastrophic . | . . . . . . . . . . . . . . . . . . Database Lockouts . | . . . . . . . . . . . . . . . . . . Manual 8 | . . . 1 . . 5 . . . . . . . . 1 1 . Terminals 2 | . . . . 1 . . . . . . 1 . . . . . . Fabricators 4 | . . . . . . 1 . . . . . . . . 3 . . Repair Stations 3 | . . . . . . . . 3 . . . . . . . . . Recycling Units . | . . . . . . . . . . . . . . . . . . Scanalyzers 2 | . . . . . . . . 2 . . . . . . . . . Garrison Access 6 | . . . . . . 4 . . . . . . . . 1 1 . Terminal Hacks 4 | . . . 1 1 . . . . 1 . 1 . . . . . . Open Door 1 | . . . . . . . . . 1 . . . . . . . . Open DSF 1 | . . . . . . . . . . . 1 . . . . . . Zone Layout 1 | . . . . 1 . . . . . . . . . . . . . EX-Prototype ID Bank 1 | . . . 1 . . . . . . . . . . . . . . Fabricator Hacks 3 | . . . . . . 1 . . . . . . . . 2 . . Network Status 1 | . . . . . . 1 . . . . . . . . . . . Build 2 | . . . . . . . . . . . . . . . 2 . . Repair Station Hacks 1 | . . . . . . . . 1 . . . . . . . . . Scan Component 1 | . . . . . . . . 1 . . . . . . . . . Recycling Unit Hacks . | . . . . . . . . . . . . . . . . . . Scanalyzer 1 | . . . . . . . . 1 . . . . . . . . . Insert Component 1 | . . . . . . . . 1 . . . . . . . . . Garrison Access Hacks . | . . . . . . . . . . . . . . . . . . Unauthorized Hacks 2 | . . . . . . . . . . . . . . . 1 1 . Terminals . | . . . . . . . . . . . . . . . . . . Fabricators . | . . . . . . . . . . . . . . . . . . Repair Stations . | . . . . . . . . . . . . . . . . . . Recycling Units . | . . . . . . . . . . . . . . . . . . Scanalyzers . | . . . . . . . . . . . . . . . . . . Garrison Access 2 | . . . . . . . . . . . . . . . 1 1 . Reprogram 2 | . . . . . . . . . . . . . . . 1 1 . Data Cores Recovered 1 | . . . . . . . . . . . . . . . 1 . . Used . | . . . . . . . . . . . . . . . . . . Hacking Detections 5 | . . . . . . 2 . 2 . . . . . . 1 . . Full Trace Events 1 | . . . . . . . . 1 . . . . . . . . . Feedback Events . | . . . . . . . . . . . . . . . . . . Feedback Blocked . | . . . . . . . . . . . . . . . . . . Robot Schematics Acquired . | . . . . . . . . . . . . . . . . . . Robots Built . | . . . . . . . . . . . . . . . . . . Authchips . | . . . . . . . . . . . . . . . . . . Time . | . . . . . . . . . . . . . . . . . . Total Robot Build Rating . | . . . . . . . . . . . . . . . . . . Part Schematics Acquired . | . . . . . . . . . . . . . . . . . . Parts Built 3 | . . . . . . . . . . . . . . . 3 . . Authchips . | . . . . . . . . . . . . . . . . . . Time 197 | . . . . . . . . . . . . . . . 197 . . Total Part Build Rating 23 | . . . . . . . . . . . . . . . 23 . . Parts Repaired . | . . . . . . . . . . . . . . . . . . Time . | . . . . . . . . . . . . . . . . . . Parts Recycled . | . . . . . . . . . . . . . . . . . . Recycled Matter . | . . . . . . . . . . . . . . . . . . Retrieved Matter . | . . . . . . . . . . . . . . . . . . Retrieved Components . | . . . . . . . . . . . . . . . . . . Parts Scanalyzed 1 | . . . . . . . . 1 . . . . . . . . . Part Schematics Acquired . | . . . . . . . . . . . . . . . . . . Parts Damaged . | . . . . . . . . . . . . . . . . . . Bothacking | -11 -10 -10 -10 -9 -8 -7 -7 -7 -7 -7 -6 -6 -5 -5 -5 -4 -4 ------------ Run | Scr Mat Min Exi Min Mat Fac Was Fac Low Low Fac DSF Fac Was Fac Fac Upp Used RIF Installer . | . . . . . . . . . . . . . . . . . . Robots Hacked . | . . . . . . . . . . . . . . . . . . Non-combat . | . . . . . . . . . . . . . . . . . . Combat . | . . . . . . . . . . . . . . . . . . Robot Hacks Applied . | . . . . . . . . . . . . . . . . . . Relay Couplers Released . | . . . . . . . . . . . . . . . . . . Fabnet Peak Effective % . | . . . . . . . . . . . . . . . . . . Robots Rewired . | . . . . . . . . . . . . . . . . . . Allies Hacked . | . . . . . . . . . . . . . . . . . . Hacks Repelled . | . . . . . . . . . . . . . . . . . . Allies | -11 -10 -10 -10 -9 -8 -7 -7 -7 -7 -7 -6 -6 -5 -5 -5 -4 -4 -------- Run | Scr Mat Min Exi Min Mat Fac Was Fac Low Low Fac DSF Fac Was Fac Fac Upp Total Allies 6 | . . . . . . . . . . . . 2 . 1 2 1 . Largest Group 3 | . . . . . . . . . . . . 2 2 3 2 1 . Highest-Rated Group 274 | . . . . . . . . . . . . 133 133 274 117 49 . Highest-Rated Ally 141 | . . . . . . . . . . . . 90 90 141 117 49 . Total Orders 9 | . . . . . . . . . . . . . 6 2 1 . . ROAM 3 | . . . . . . . . . . . . . 3 . . . . FOLLOW 1 | . . . . . . . . . . . . . 1 . . . . GUARD 1 | . . . . . . . . . . . . . 1 . . . . AID 3 | . . . . . . . . . . . . . . 2 1 . . EXPLORE 1 | . . . . . . . . . . . . . 1 . . . . Ally Attacks 52 | . . . . . . . . . . . . 3 3 18 27 1 . Total Damage 1273 | . . . . . . . . . . . . . 39 819 387 28 . Kills 8 | . . . . . . . . . . . . . . 1 7 . . Allies Corrupted . | . . . . . . . . . . . . . . . . . . Allies Melted . | . . . . . . . . . . . . . . . . . . Field Lobotomies 3 | . . . . . . . . . . . . 2 . 1 . . . Intel | -11 -10 -10 -10 -9 -8 -7 -7 -7 -7 -7 -6 -6 -5 -5 -5 -4 -4 ------- Run | Scr Mat Min Exi Min Mat Fac Was Fac Low Low Fac DSF Fac Was Fac Fac Upp Robot Analysis Total . | . . . . . . . . . . . . . . . . . . Derelict Logs Recovered 3 | . . 1 . 1 . . . . 1 . . . . . . . . Drone Launches 3 | . . . . . . . . . . . . . 3 . . . . Drone Recoveries 1 | . . . . . . . . . . . . . 1 . . . . Exploration | -11 -10 -10 -10 -9 -8 -7 -7 -7 -7 -7 -6 -6 -5 -5 -5 -4 -4 ------------- Run | Scr Mat Min Exi Min Mat Fac Was Fac Low Low Fac DSF Fac Was Fac Fac Upp Turns Passed 9201 | . 302 119 496 419 861 606 601 935 1616 194 11 222 174 169 569 474 1433 Spaces Moved 5423 | 1 200 81 412 246 334 344 350 503 694 93 15 154 105 139 634 573 545 Core 1083 | . . . . . . . . . . 20 15 37 . . . 469 542 Treads 2350 | . . . . 49 334 344 350 503 694 73 . . . . . . 3 Legs 891 | 1 200 81 412 197 . . . . . . . . . . . . . Wheels . | . . . . . . . . . . . . . . . . . . Hover 1099 | . . . . . . . . . . . . 117 105 139 634 104 . Flight . | . . . . . . . . . . . . . . . . . . Fastest Speed 48 | 120 120 120 120 120 160 160 160 160 160 50 50 48 48 52 48 50 160 Average Speed 131 | 120 120 120 120 128 160 160 160 160 160 143 50 88 49 62 49 58 249 Slowest Speed 750 | 120 120 120 120 190 240 160 160 160 160 750 50 200 110 110 60 180 250 Overloaded Moves . | . . . . . . . . . . . . . . . . . . Propulsion Burnouts . | . . . . . . . . . . . . . . . . . . Robots Hopped . | . . . . . . . . . . . . . . . . . . Cave-ins Triggered 4 | . . . . . . . . . . 1 . . . . 1 2 . Exploration Rate (%) 39 | 2 36 16 89 47 28 11 88 17 70 11 1 96 7 83 20 22 62 Regions Visited 17 Branch Regions 6 Pre-discovered Areas 1 | . . . . 1 . . . . . . . . . . . . . Known Exits Taken 6 | . . . . . 1 . . 1 1 1 1 . . . 1 . . Unknown Exits Taken 6 | 1 1 1 1 1 . . . . . . . . . . . 1 . Scrap Searched 9 | . . . . 1 . . . . 5 2 . . . . . . 1 Spaces Dug 40 | . . . . . . . . 1 . 1 . . . . 20 13 5 Terrain Destroyed 169 | . . . . . 28 . . 8 1 24 . 18 18 . 51 13 8 Melee 32 | . . . . . . . . 1 . 1 . . . . 20 10 . Projectile 20 | . . . . . . . . 4 1 3 . . . . 1 3 8 AOE 117 | . . . . . 28 . . 3 . 20 . 18 18 . 30 . . Terrain Rammed . | . . . . . . . . . . . . . . . . . . Walls Destroyed . | . . . . . . . . . . . . . . . . . . Machines Disabled . | . . . . . . . . . . . . . . . . . . Actions | -11 -10 -10 -10 -9 -8 -7 -7 -7 -7 -7 -6 -6 -5 -5 -5 -4 -4 --------- Run | Scr Mat Min Exi Min Mat Fac Was Fac Low Low Fac DSF Fac Was Fac Fac Upp Total 7166 | . 233 90 414 308 597 397 371 603 1200 132 17 229 220 216 841 691 607 Wait 1381 | . 6 3 . 28 202 39 . 79 500 14 3 60 101 69 149 80 48 Move 5407 | . 199 80 411 245 333 344 349 502 693 92 14 153 105 138 632 572 545 Hop . | . . . . . . . . . . . . . . . . . . Pick Up 49 | . 6 . 2 5 12 6 4 1 2 1 . 2 2 . 4 2 . Fast Attach 18 | . . . . . 1 . 2 1 1 . . 5 . 1 7 . . Attach 28 | . 1 . . 3 6 2 . . . 1 . 2 3 . 5 3 2 Detach 5 | . . . . . . . . . . 1 . . 1 2 . 1 . Swap 22 | . 2 . . 3 5 2 1 3 1 2 . 1 . . 1 1 . Drop 41 | . 3 . 1 2 5 2 2 2 3 6 . 1 . 3 4 7 . Fire 146 | . 16 7 . 22 33 2 . 13 . 14 . 5 8 3 8 3 12 Melee 65 | . . . . . . . 13 2 . 1 . . . . 30 19 . Ram 3 | . . . . . . . . . . . . . . . . 3 . Kick . | . . . . . . . . . . . . . . . . . . Crush . | . . . . . . . . . . . . . . . . . . Escape Stasis 1 | . . . . . . . . . . . . . . . 1 . . Rewire . | . . . . . . . . . . . . . . . . . . Trap . | . . . . . . . . . . . . . . . . . . Miscellaneous . | . . . . . . . . . . . . . . . . . . Route ------- -11/Scrapyard -10/Materials -10/Mines -10/Exiles (discovered 2 exits: *Min x2) -9/Mines -8/Materials -7/Factory -7/Waste -7/Factory -7/Lower Caves -7/Lower Caves -6/Factory (discovered 2 exits: Ext / DSF) -6/DSF -5/Factory -5/Waste -5/Factory -4/Factory (discovered 2 exits: [*Res] / [*Upp]) -4/Upper Caves History --------- Turn | Location | Event 1 | -11/Scrapyard | Discovered new exit (range 0) 1 | -11/Scrapyard | Entered Materials 282 | -10/Materials | Discovered new exit (range 15) 303 | -10/Materials | Entered Mines 316 | -10/Mines | Build established: Mutant 350 | -10/Mines | Learned Materials interactive machine intel 356 | -10/Mines | Found a hidden stash of uninstalled traps 417 | -10/Mines | Deemed a non-threat by the Exiles lab entrance 417 | -10/Mines | Discovered new exit (range 5) 422 | -10/Mines | Entered Exiles 454 | -10/Exiles | Discovered new exit (range 14) 473 | -10/Exiles | Met 8R-AWN 494 | -10/Exiles | Met EX-HEX 532 | -10/Exiles | Met EX-BIN 549 | -10/Exiles | Aligned with FarCom system 550 | -10/Exiles | Given EX-Vault access code 582 | -10/Exiles | Opened EX-Vault 592 | -10/Exiles | Found Field Lobotomy Kit 619 | -10/Exiles | Warned to stay clear of 0b10 Research branches 654 | -10/Exiles | Met EX-DEC 728 | -10/Exiles | Visited The Gauntlet 901 | -10/Exiles | Discovered new exit (range 14) 918 | -10/Exiles | Left Exiles lab with Field Lobotomy Kit 918 | -10/Exiles | Entered Mines 935 | -9/Mines | Met a Derelict bent on vengeance 1181 | -9/Mines | Joined a pair of Derelicts in attacking an 0b10 outpost 1321 | -9/Mines | Discovered new exit (range 8) 1337 | -9/Mines | Entered Materials 1337 | -8/Materials | Evolved 4 slots: Propulsion x2, Utility x2 1338 | -8/Materials | Loaded intel: 19 interactive machine locations 2118 | -8/Materials | Discovered new exit (range 10) 2137 | -8/Materials | Identified exit to Factory 2198 | -8/Materials | Entered Factory 2198 | -7/Factory | Evolved 2 slots: Utility x2 2734 | -7/Factory | Build established: Scavenger-Skirmisher 2804 | -7/Factory | Sucked down chute 2804 | -7/Factory | Entered Waste 2804 | -7/Waste | The area was eerily silent 3081 | -7/Waste | Discovered new exit (range 13) 3148 | -7/Waste | Build established: Scavenger-Assassin 3380 | -7/Waste | A Compactor rumbled back to life 3381 | -7/Waste | Spotted C-40 Crusher 3402 | -7/Waste | Identified exit to Factory 3405 | -7/Waste | Entered Factory 4188 | -7/Factory | Discovered new exit (range 7) 4197 | -7/Factory | Identified exit to Lower Caves 4340 | -7/Factory | Entered Lower Caves 4387 | -7/Lower Caves | Build established: Scavenger-Skirmisher 5872 | -7/Lower Caves | Encountered a Warlord checkpoint 5935 | -7/Lower Caves | Discovered new exit (range 12) 5954 | -7/Lower Caves | Identified exit to Lower Caves 5956 | -7/Lower Caves | Entered another Lower Caves area 6068 | -7/Lower Caves | Discovered new exit (range 8) 6086 | -7/Lower Caves | Attracted the attention of an 0b10 outpost 6136 | -7/Lower Caves | Crushed by falling debris 6150 | -7/Lower Caves | Identified exit to Factory 6150 | -7/Lower Caves | Entered Factory 6150 | -6/Factory | Evolved 2 slots: Utility x2 6151 | -6/Factory | Identified exit to Extension 6161 | -6/Factory | Identified exit to DSF 6161 | -6/Factory | Entered DSF 6168 | -6/DSF | Lost 6 parts (2n2u2w) 6190 | -6/DSF | Assimilated H-61 Shepherd with FLK Orb 6242 | -6/DSF | Assimilated X-67 Chaingunner with FLK Orb 6258 | -6/DSF | Additional patrols routed to DSF 6306 | -6/DSF | Discovered new exit (range 16) 6369 | -6/DSF | Identified exit to Factory 6383 | -6/DSF | Entered Factory 6383 | -5/Factory | Accompanied by 2 allies 6383 | -5/Factory | Evolved 2 slots: Power x1, Utility x1 6557 | -5/Factory | Sucked down chute 6557 | -5/Factory | Entered Waste 6572 | -5/Waste | EMP discharged 6595 | -5/Waste | 2 allies followed down the chute 6614 | -5/Waste | Spotted C-40 Crusher 6624 | -5/Waste | Assimilated C-40 Crusher with FLK Orb 6649 | -5/Waste | Spotted C-40 Crusher 6650 | -5/Waste | Spotted C-40 Crusher 6652 | -5/Waste | Spotted C-40 Crusher 6663 | -5/Waste | Crushed by Compactor (1 part destroyed) 6664 | -5/Waste | Allies destroyed C-40 Crusher 6664 | -5/Waste | Spotted C-40 Crusher 6672 | -5/Waste | EMP discharged 6672 | -5/Waste | System corruption reached 10% 6677 | -5/Waste | Spotted C-40 Crusher 6690 | -5/Waste | Discovered new exit (range 16) 6699 | -5/Waste | Identified exit to Factory 6726 | -5/Waste | Entered Factory 6726 | -5/Factory | Accompanied by 1 ally 6857 | -5/Factory | Crushed by falling debris 6942 | -5/Factory | Fabricated Enh. Nova Cannon? 7014 | -5/Factory | Fabricated Quantum Capacitor? 7285 | -5/Factory | Discovered new exit (range 14) 7294 | -5/Factory | Identified exit to Factory 7295 | -5/Factory | Entered another Factory area 7295 | -4/Factory | Evolved 2 slots: Propulsion x2 7331 | -4/Factory | Build established: Hacker-Mutant 7514 | -4/Factory | Spotted B-86 Titan 7521 | -4/Factory | Core integrity fell below 50% 7567 | -4/Factory | Lost 3 parts (3u) 7602 | -4/Factory | Crushed by falling debris 7648 | -4/Factory | Core integrity fell below 20% 7707 | -4/Factory | Garrison activated, responded to threat 7719 | -4/Factory | Discovered new exit (range 16) 7739 | -4/Factory | Crushed by falling debris 7739 | -4/Factory | System corruption reached 10% 7757 | -4/Factory | Discovered new exit (range 8) 7769 | -4/Factory | Entered Upper Caves 7817 | -4/Upper Caves | Build established: Mutant 8809 | -4/Upper Caves | Encountered a Warlord checkpoint 9163 | -4/Upper Caves | Spotted B-86 Titan 9202 | -4/Upper Caves | Destroyed by G-67 Veteran with Plasma Rifle Last Messages --------------- 08913_ Acquired 1 matter. 08929_ System corrupted: Matter fused (-1). 08968_ System corrupted: Component data lost. 08984_ System corrupted: Heat flow error (+183). 09002_ System corrupted: Energy discharge (-35). 09052_ VRTBNWXZZGBXOZ